Cogmind - Beta 10.2 @@@ ROGUE MODE // 2021.06.10 @ 12:51:21 Player: Exp. Geonium Core Result: Destroyed by 8R-AWN with 8R-AWN's Boregun Performance ------------- Evolutions (1) 500 Regions Visited (5) 1000 Robots Destroyed (4) 20 Value Destroyed (30) 30 Prototype IDs (24) 480 Alien Tech Used (0) 0 Bonus (-419) -419 TOTAL SCORE: 1611 Bonus ------- Aligned with FarCom 300 Friendly Fire -719 Cogmind --------- Core Integrity 0/400 Matter 173/300 Energy 100/100 System Corruption 0% Temperature Cool (0) Movement Core (50) Location -9/Exiles Parts ------- > --- POWER (1) -------- (None) > --- PROPULSION (2) --- (None) > --- UTILITY (4) ------ Advanced Visual Processing Unit Improved Signal Interpreter Armor Integrity Analyzer > --- WEAPON (2) ------- Mining Claw > --- INVENTORY (4) ---- Experimental Sensor Array Peak State ------------ > --- POWER ------------ Light Ion Engine > --- PROPULSION ------- Light Treads Flight Unit > --- UTILITY ---------- Advanced Visual Processing Unit Improved Signal Interpreter Armor Integrity Analyzer Light Armor Plating > --- WEAPON ----------- AWS/Gauss > --- INVENTORY -------- Flight Unit Experimental Sensor Array PSU Rigger Mining Claw [Rating: 28] Favorites ----------- Power Light Ion Engine Engine Light Ion Engine Propulsion Flight Unit Treads Light Treads Flight Unit Flight Unit Utility Armor Integrity Analyzer Device Improved Sensor Array Processor Armor Integrity Analyzer Protection Light Armor Plating Weapon Mining Claw Ballistic Gun AWS/Gauss Slashing Weapon Mining Claw Build | -11 -10 -10 -9 -9 -9 ------- Run | Scr Mat Min Mat Min Exi Slots Evolved 2 | . . . 2 . . Power . | . . . . . . Propulsion . | . . . . . . Utility 2 | . . . 2 . . Weapon . | . . . . . . Parts Attached 22 | 2 1 4 5 . 10 Power 1 | . . . 1 . . Engine 1 | . . . 1 . . Core . | . . . . . . Reactor . | . . . . . . Propulsion 5 | 2 . 2 . . 1 Treads 3 | 2 . . . . 1 Leg . | . . . . . . Wheel . | . . . . . . Hover . | . . . . . . Flight 2 | . . 2 . . . Utility 8 | . 1 . 4 . 3 Device 2 | . . . 1 . 1 Storage . | . . . . . . Processor 4 | . 1 . 3 . . Hackware . | . . . . . . Protection 2 | . . . . . 2 Artifact . | . . . . . . Weapon 8 | . . 2 . . 6 Energy Gun . | . . . . . . Energy Cannon . | . . . . . . Ballistic Gun 2 | . . . . . 2 Ballistic Cannon . | . . . . . . Launcher . | . . . . . . Special Weapon . | . . . . . . Impact Weapon . | . . . . . . Slashing Weapon 6 | . . 2 . . 4 Piercing Weapon . | . . . . . . Special Melee Weapon . | . . . . . . Unidentified Prototypes 1 | . . . . . 1 Parts Lost 5 | . . . . . 5 Power 1 | . . . . . 1 Propulsion 2 | . . . . . 2 Utility 1 | . . . . . 1 Weapon 1 | . . . . . 1 Highest Loss Streak 3 | . . . . . 3 Average Slot Usage (%) 82 | . 39 71 89 100 84 Engine 7 | . . . 10 11 8 Treads 8 | . 28 15 . . 9 Flight 13 | . . 12 22 22 9 Device 4 | . . . 10 11 1 Processor 27 | . 11 14 25 33 33 Protection 3 | . . . . . 8 Ballistic Gun 3 | . . . . . 6 Slashing Weapon 14 | . . 28 22 22 6 Naked Turns . | . . . . . . Heaviest Build 16 | . . 4 8 8 16 Greatest Support 20 | 20 3 4 8 8 20 Greatest Overweight (x) 1 | . . 1 . . 1 Average Overweight (x) . | . . . . . . Largest Inventory Capacity 4 | 4 4 4 4 4 4 Average Capacity 4 | 4 4 4 4 4 4 Most Carried 4 | . 3 4 4 4 4 Average Carried 2 | . . 2 3 3 2 Final Capacity 4 | 4 4 4 4 4 4 Final Carried 4 | . 3 4 4 4 1 Class Distribution -------------------- 70% | Mutant 29% | Scout Dominant Class ---------------- Mutant | -10/Materials Mutant | -10/Mines Scout | -9/Materials Scout | -9/Mines Mutant | -9/Exiles Resources | -11 -10 -10 -9 -9 -9 ----------- Run | Scr Mat Min Mat Min Exi Matter Collected 268 | 173 47 30 . 18 . Remotely . | . . . . . . Salvage Created 178 | . . 53 . . 125 Parts 16 | . . 5 . . 11 Haulers Intercepted . | . . . . . . Recyclers Shooed . | . . . . . . Parts Field Recycled . | . . . . . . Retrieved Matter . | . . . . . . Parts Self-Destructed . | . . . . . . Prevented . | . . . . . . Kills | -11 -10 -10 -9 -9 -9 ------- Run | Scr Mat Min Mat Min Exi Combat Hostiles Destroyed 10 | . . 3 . . 7 Melee 3 | . . 3 . . . Guns 7 | . . . . . 7 Classes Destroyed 2 | . . 1 . . 1 Swarmer 3 | . . 3 . . . Assembled 7 | . . . . . 7 Best Kill Streak 7 | . . 2 . . 7 Combat Bots Only 7 | . . 2 . . 7 Max Kills in Single Turn 2 | . . 1 . . 2 Gunslinging . | . . . . . . Exploded . | . . . . . . Melee 1 | . . 1 . . . Uniques/NPCs Destroyed 1 | . . . . . 1 EX-BIN (-9/Exiles) Combat | -11 -10 -10 -9 -9 -9 -------- Run | Scr Mat Min Mat Min Exi Damage Taken 1112 | . 59 184 27 108 734 Core 485 | . 32 50 14 70 319 Absorbed by Shields . | . . . . . . Core Remaining (%) 83 | 100 . 67 . . . Volleys Fired . | . . . . . . Largest . | . . . . . . Hottest . | . . . . . . Shots Fired 35 | . . . . . 35 Gun 35 | . . . . . 35 Cannon . | . . . . . . Launcher . | . . . . . . Special . | . . . . . . Kinetic 35 | . . . . . 35 Thermal . | . . . . . . Explosive . | . . . . . . Electromagnetic . | . . . . . . Robot Hit Streak 5 | . . . . . 5 Robot Miss Streak 4 | . . . . . 4 Penetration Max . | . . . . . . Secondary Targets . | . . . . . . Autonomous 35 | . . . . . 35 Shots Hit Robots 35 | . . 7 . . 28 Core Hits 14 | . . 3 . . 11 Critical Hits . | . . . . . . Critical Kills . | . . . . . . Critical Parts Destroyed . | . . . . . . Melee Attacks 26 | . . 15 2 . 9 Impact . | . . . . . . Slashing 26 | . . 15 2 . 9 Piercing . | . . . . . . Sneak Attacks 1 | . . . . . 1 Combat Hostiles . | . . . . . . Follow-up Attacks 3 | . . 3 . . . Damage Inflicted 1106 | . . 166 . . 940 Guns 747 | . . . . . 747 Cannons . | . . . . . . Explosions . | . . . . . . Melee 359 | . . 166 . . 193 Ramming . | . . . . . . Kinetic 747 | . . . . . 747 Thermal . | . . . . . . Explosive . | . . . . . . Electromagnetic . | . . . . . . Impact . | . . . . . . Slashing 359 | . . 166 . . 193 Piercing . | . . . . . . Highest Corruption . | . . . . . . Average Corruption . | . . . . . . Corruption Purged . | . . . . . . Overload Shots . | . . . . . . Overflow Damage 2 | . . 2 . . . Projectiles . | . . . . . . Explosions . | . . . . . . Melee 2 | . . 2 . . . Knockbacks . | . . . . . . Impact . | . . . . . . Kinetic . | . . . . . . Secondary . | . . . . . . Self-Inflicted Damage . | . . . . . . Shots . | . . . . . . Rammed . | . . . . . . Targets Rammed . | . . . . . . Kicked . | . . . . . . Crushed . | . . . . . . Highest Temperature . | . . . . . . Average Temperature . | . . . . . . Received Heat Transfer 9 | . . . 9 . . Siege Activations . | . . . . . . Robots Corrupted . | . . . . . . Combat Hostiles . | . . . . . . Parts Fried . | . . . . . . Impact Corruptions . | . . . . . . Robots Melted . | . . . . . . Combat Hostiles . | . . . . . . Parts Melted . | . . . . . . Heat Transferred . | . . . . . . Parts Sabotaged . | . . . . . . Parts Stolen . | . . . . . . Parts Stripped . | . . . . . . Power Chain Reactions . | . . . . . . Missiles Intercepted . | . . . . . . Alert | -11 -10 -10 -9 -9 -9 ------- Run | Scr Mat Min Mat Min Exi Peak Influence 112 | . 15 105 96 112 . Initial 40 | . . 5 40 37 . Average 54 | . 2 89 58 46 . Maximum Alert Level . | . . . . . . Low Security (%) 100 | 100 100 100 100 100 . Level 1 . | . . . . . . Level 2 . | . . . . . . Level 3 . | . . . . . . Level 4 . | . . . . . . Level 5 . | . . . . . . High Security . | . . . . . . Max Security . | . . . . . . Squads Dispatched 1 | . . . 1 . . Investigation 1 | . . . 1 . . Extermination . | . . . . . . Reinforcement . | . . . . . . Assault . | . . . . . . Garrison . | . . . . . . Intercept . | . . . . . . Construction Impeded . | . . . . . . Haulers Reinforced . | . . . . . . Stealth | -11 -10 -10 -9 -9 -9 --------- Run | Scr Mat Min Mat Min Exi Distress Signals 1 | . . . 1 . . Communications Jammed . | . . . . . . Distress Signals . | . . . . . . Times Spotted 30 | . 7 4 4 7 8 Peak Tracking Total 9 | . 7 3 4 6 9 Tactical Retreats 2 | . . 1 . 1 . Traps | -11 -10 -10 -9 -9 -9 ------- Run | Scr Mat Min Mat Min Exi Traps Triggered . | . . . . . . Indirectly . | . . . . . . Trap Hack Attempts . | . . . . . . Triggered . | . . . . . . Disarmed . | . . . . . . Reprogrammed . | . . . . . . Reused . | . . . . . . Traps Extracted . | . . . . . . Installed . | . . . . . . Triggered . | . . . . . . Machines | -11 -10 -10 -9 -9 -9 ---------- Run | Scr Mat Min Mat Min Exi Machines Disabled 2 | . . . . . 2 Max in Single Turn 1 | . . . . . 1 Machines Sabotaged . | . . . . . . Garrisons Compromised . | . . . . . . Overloaded Fab Kills . | . . . . . . Fab Network Shutdowns . | . . . . . . Hacking | -11 -10 -10 -9 -9 -9 --------- Run | Scr Mat Min Mat Min Exi Machines Accessed 4 | . . . 3 . 1 Terminals 3 | . . . 3 . . Fabricators . | . . . . . . Repair Stations . | . . . . . . Recycling Units . | . . . . . . Scanalyzers . | . . . . . . Garrison Access . | . . . . . . Total Hacks 9 | . . . 8 . 1 Successful 5 | . . . 4 . 1 Failed 4 | . . . 4 . . Catastrophic . | . . . . . . Database Lockouts . | . . . . . . Manual 6 | . . . 5 . 1 Terminals 8 | . . . 8 . . Fabricators . | . . . . . . Repair Stations . | . . . . . . Recycling Units . | . . . . . . Scanalyzers . | . . . . . . Garrison Access . | . . . . . . Terminal Hacks 3 | . . . 2 . 1 Branch Access Points 1 | . . . 1 . . Zone Layout 1 | . . . 1 . . EX-Prototype ID Bank 1 | . . . . . 1 Fabricator Hacks . | . . . . . . Repair Station Hacks . | . . . . . . Recycling Unit Hacks . | . . . . . . Scanalyzer . | . . . . . . Garrison Access Hacks . | . . . . . . Unauthorized Hacks 2 | . . . 2 . . Terminals 2 | . . . 2 . . Track 1 | . . . 1 . . Assimilate 1 | . . . 1 . . Fabricators . | . . . . . . Repair Stations . | . . . . . . Recycling Units . | . . . . . . Scanalyzers . | . . . . . . Garrison Access . | . . . . . . Data Cores Recovered . | . . . . . . Used . | . . . . . . Hacking Detections 2 | . . . 2 . . Full Trace Events 1 | . . . 1 . . Feedback Events . | . . . . . . Feedback Blocked . | . . . . . . Robot Schematics Acquired . | . . . . . . Robots Built . | . . . . . . Matter . | . . . . . . Time . | . . . . . . Total Robot Build Rating . | . . . . . . Part Schematics Acquired . | . . . . . . Parts Built . | . . . . . . Matter . | . . . . . . Time . | . . . . . . Total Part Build Rating . | . . . . . . Parts Repaired . | . . . . . . Time . | . . . . . . Parts Recycled . | . . . . . . Recycled Matter . | . . . . . . Retrieved Matter . | . . . . . . Retrieved Components . | . . . . . . Parts Scanalyzed . | . . . . . . Part Schematics Acquired . | . . . . . . Parts Damaged . | . . . . . . Bothacking | -11 -10 -10 -9 -9 -9 ------------ Run | Scr Mat Min Mat Min Exi Used RIF Installer . | . . . . . . Robots Hacked . | . . . . . . Non-combat . | . . . . . . Combat . | . . . . . . Robot Hacks Applied . | . . . . . . Relay Couplers Released . | . . . . . . Robots Rewired . | . . . . . . Allies Hacked . | . . . . . . Hacks Repelled . | . . . . . . Allies | -11 -10 -10 -9 -9 -9 -------- Run | Scr Mat Min Mat Min Exi Total Allies . | . . . . . . Largest Group . | . . . . . . Highest-Rated Group . | . . . . . . Highest-Rated Ally . | . . . . . . Total Orders . | . . . . . . Ally Attacks . | . . . . . . Total Damage . | . . . . . . Kills . | . . . . . . Allies Corrupted . | . . . . . . Allies Melted . | . . . . . . Intel | -11 -10 -10 -9 -9 -9 ------- Run | Scr Mat Min Mat Min Exi Robot Analysis Total . | . . . . . . Derelict Logs Recovered 3 | . . 2 . 1 . Drone Launches . | . . . . . . Drone Recoveries . | . . . . . . Exploration | -11 -10 -10 -9 -9 -9 ------------- Run | Scr Mat Min Mat Min Exi Turns Passed 766 | 22 48 117 109 123 347 Spaces Moved 1044 | 23 86 155 256 249 275 Core 127 | 16 86 23 . . 2 Treads 151 | 7 . . . . 144 Legs . | . . . . . . Wheels . | . . . . . . Hover . | . . . . . . Flight 766 | . . 132 256 249 129 Fastest Speed 37 | 50 50 40 37 37 37 Average Speed 57 | 83 50 47 37 37 101 Slowest Speed 160 | 160 50 100 40 37 160 Overloaded Moves . | . . . . . . Propulsion Burnouts . | . . . . . . Robots Hopped 3 | . . . . 3 . Cave-ins Triggered . | . . . . . . Exploration Rate (%) 33 | 4 32 36 38 49 44 Regions Visited 5 Branch Regions 3 Pre-discovered Areas 1 | . . . . 1 . Known Exits Taken 4 | . 1 1 1 1 . Unknown Exits Taken 1 | 1 . . . . . Scrap Searched 1 | . . . . 1 . Spaces Dug 2 | . . . 2 . . Terrain Destroyed 11 | . . . 2 . 9 Melee 2 | . . . 2 . . Projectile 9 | . . . . . 9 AOE . | . . . . . . Terrain Rammed . | . . . . . . Walls Destroyed . | . . . . . . Machines Disabled . | . . . . . . Actions | -11 -10 -10 -9 -9 -9 --------- Run | Scr Mat Min Mat Min Exi Total 1153 | 24 89 172 263 277 328 Wait 46 | . . . . 28 18 Move 1034 | 22 85 154 255 243 275 Hop 2 | . . . . 2 . Pick Up 15 | . 3 3 1 2 6 Fast Attach 7 | 2 1 . 3 . 1 Attach 9 | . . 2 1 . 6 Detach . | . . . . . . Swap 6 | . . 2 1 . 3 Drop 12 | . . . . 2 10 Fire . | . . . . . . Melee 22 | . . 11 2 . 9 Ram . | . . . . . . Kick . | . . . . . . Crush . | . . . . . . Escape Stasis . | . . . . . . Rewire . | . . . . . . Trap . | . . . . . . Miscellaneous . | . . . . . . Route ------- -11/Scrapyard -10/Materials -10/Mines -9/Materials (discovered 3 exits: [*Mat] / *Min x2) -9/Mines -9/Exiles (discovered 1 exit: [*Min]) History --------- Turn | Location | Event 12 | -11/Scrapyard | Discovered new exit (range 15) 23 | -11/Scrapyard | Entered Materials 62 | -10/Materials | Discovered new exit (range 8) 70 | -10/Materials | Identified exit to Mines 71 | -10/Materials | Entered Mines 154 | -10/Mines | Learned Materials emergency access door positions 172 | -10/Mines | Learned Materials garrison access intel 184 | -10/Mines | Discovered new exit (range 9) 185 | -10/Mines | Met a Derelict testing a Signal Generator 187 | -10/Mines | Identified exit to Materials 188 | -10/Mines | Entered Materials 188 | -9/Materials | Evolved 2 slots: Utility x2 248 | -9/Materials | Identified exit to Mines 262 | -9/Materials | Discovered new exit (range 8) 297 | -9/Materials | Entered Mines 298 | -9/Mines | Learned location of Storage (-7) 320 | -9/Mines | Found a damaged Exp. Sensor Array with a note attached 322 | -9/Mines | Found Prototype Device 330 | -9/Mines | Learned Materials trap positions 337 | -9/Mines | Assembled infested the area 352 | -9/Mines | Received a Rocket Launcher from a helpful Derelict 417 | -9/Mines | Met 8R-AWN 419 | -9/Mines | Discovered new exit (range 5) 420 | -9/Mines | Identified exit to Exiles 420 | -9/Mines | Entered Exiles 425 | -9/Exiles | Discovered new exit (range 16) 430 | -9/Exiles | Welcomed by 8R-AWN 435 | -9/Exiles | Met EX-HEX 446 | -9/Exiles | Met EX-BIN 456 | -9/Exiles | Aligned with FarCom system 456 | -9/Exiles | Given EX-Vault access code 465 | -9/Exiles | Opened EX-Vault 471 | -9/Exiles | Identified Exp. Sensor Array 480 | -9/Exiles | Found AWS/Gauss 485 | -9/Exiles | Found PSU Rigger 517 | -9/Exiles | Warned to stay clear of 0b10 Research branches 660 | -9/Exiles | Destroyed EX-BIN 661 | -9/Exiles | Attacked by the Exiles 713 | -9/Exiles | Destroyed 7 combat bots 750 | -9/Exiles | Core integrity fell below 50% 760 | -9/Exiles | Core integrity fell below 20% 761 | -9/Exiles | Build established: Mutant 767 | -9/Exiles | Destroyed by 8R-AWN with 8R-AWN's Boregun Last Messages --------------- 00743_ Critical hit. 00743_ Lgt. Treads destroyed. 00743_ HV Slug penetrates Earth. 00743_ Penetrated by HV Slug. 00743_ HV Slug penetrates Earth. 00747_ Penetrated by HV Slug. 00747_ HV Slug penetrates Earth. 00747_ Penetrated by HV Slug. 00747_ HV Slug penetrates Earth. 00747_ Destroyed Prototype Protection. 00749_ Penetrated by HV Slug. 00749_ HV Slug penetrates Earth. 00749_ Penetrated by HV Slug. 00749_ HV Slug penetrates Earth. 00751_ Penetrated by HV Slug. 00751_ HV Slug penetrates Earth. 00751_ Penetrated by HV Slug. 00757_ Critical hit. 00757_ Mining Claw destroyed. 00759_ Penetrated by HV Slug. Map ----- +----------------------------------------------------+ | | | | | | | | | | | | | | | ??????????????????????#########??????????????????? | | ??????????????????????#/ ! [#??????????????????? | | ??????????????????????# #??????????????????? | | ??????????????????????# #??????????????????? | | ??????????????????????# X#??????????????????? | | ??????????????????????## ##??????????????????? | | ??????????????????????#X #???????????????????? | | ??????????????????????## = #???????????????????? | | ???????????????????????# ! #???????????????????? | | ???????????????????????# #???#####???????????? | | ???????????????????????# #??"""""#???????????? | | ???????????????????????# ## """#???????????? | | ???????????????????????# X""#???????????? | | ???????????????????????# ## """#???????????? | | ???????????????######### #??"""""#???????????? | | ???????????????#""""""## #???#####???????????? | | ???????????????#"""" ## #???????????????????? | | ????????????####""X" ###?????????????????? | | ????? ; [ @ g ; #?????????????????? | | ????????????####" ## ###?????????????????? | | ???????????????#""" ""## #?#########?????????? | | ???????????????##"###### #?#"""""""#?????????? | | ??????????????? ??????# #?#"""""""#?????????? | | ?????????????#"????????# ###"""""""#?????????? | | ?????????????#????????## ;##"" """"#?????????? | | ??????????????????????#" """#?????????? | | ??????????????????????# !!"""#?????????? | | ??????????????????????#" !!!"""#?????????? | | ??????????????????????#" % ! %"""#?????????? | | ??????????????????????#" % =!!"""#?????????? | | ??????????????????????#" % % !!"""#?????????? | | ??????????????????????## """"""???????? | | ???????????????????????# """###???????? | | ???????????????????????#" X" """""????????? | | ???????????????????????#" % "" # "???????? | | ???????????????????????#" % " """""#?"???????? | | ??????????????????????##" ;""########?????????? | | ?????????????????????##"" %" ##????????????????? | | ?????????????????#####"" # #?????????????????? | | ????????????????#""""""" ###?????????????????? | | ???????????????"""" " "" ##???###########???? | | ?????????????"" """ " #####"""""""""##??? | | ????????????? " " " """ """"##?? | +----------------------------------------------------+ Best States ------------- Heat Dissipation 28 Energy Generation 10 Energy Capacity 125 Matter Stores 300 Matter Capacity 300 Sight Range 20 Robot Scan Range 13 Terrain Scan Density 10 Armor Coverage 150 Evasion (%) 62 Armor Integrity Analysis 33 Recoil Reduction 1 Item Schematics ----------------- None Robot Schematics ------------------ None Fabricated ------------ Nothing Alien Tech Used ----------------- None Achievements -------------- None Challenges ------------ None Game ------ Seed SubatomicCoreWand Manual? 0 Play Time 00:14:19 Cumulative 99.5 hours Start 2021.06.10 @ 12:26:50 End 2021.06.10 @ 12:51:21 Sessions 1 Manual Loads 0 Difficulty Rogue Special Mode None Game No. 154 Rogue 154 Adventurer 0 Explorer 0 Win Type - Total 3 Types 2/0/0/1/0/0/0/0/0 Lore% 48 Gallery% 66 Achievement% 56 Wizard Run 0 Options --------- ASCII 0 Keyboard 0 Movement Numpad Keybinds 0 Fullscreen 1 Font 18/Terminus Map View 76x50 Tactical HUD 1 Map Filters NONE Filters NONE Steam 1 RUN: 0857a678-b345-428d-a7b8-6803696105d8